fUSD/lending_fUSD_20240518
["ID","MTS","AMOUNT","RATE_DAILY","PERIOD"]
[327428616,1716072652080,-500.0,0.00027397,2]
[327428617,1716072652089,-501.96171097,0.00027397,2]
[327428618,1716072652098,-858.26,0.00027397,2]
[327428619,1716072652107,-150.0,0.00027397,2]
[327428620,1716072652116,-500.0,0.00027397,2]
[327428621,1716072652127,-500.0,0.00027397,2]
[327428622,1716072652137,-151.0,0.00027397,7]
[327428623,1716072652147,-500.0,0.00027397,2]
[327428624,1716072652157,-151.0,0.00027397,7]
[327428625,1716072652168,-1058.12,0.00027397,2]
[327428626,1716072652182,-500.0,0.00027397,2]
[327428627,1716072652191,-509.17494129,0.00027397,2]
[327428628,1716072652201,-638.4,0.00027397,2]
[327428629,1716072652211,-500.0,0.00027397,2]
[327428630,1716072652221,-500.0,0.00027397,2]
[327428631,1716072652231,-1228.94,0.00027397,2]
[327428632,1716072652241,-500.0,0.00027397,2]
[327428633,1716072652251,-508.47378461,0.00027397,2]
[327428634,1716072652260,-872.12,0.00027397,2]
[327428635,1716072652270,-610.79,0.00027397,2]
[327428636,1716072652281,-500.0,0.00027397,2]
[327428637,1716072652292,-650.02,0.00027397,2]
[327428638,1716072652302,-151.0,0.00027397,7]
[327428639,1716072652313,-500.0,0.00027397,2]
[327428640,1716072652323,-500.0,0.00027397,2]
[327428641,1716072652334,-524.90925552,0.00027397,2]
[327428642,1716072652343,-911.87,0.00027397,2]
[327428643,1716072652353,-722.52,0.00027397,2]
[327428644,1716072652362,-151.0,0.00027397,7]
[327428645,1716072652372,-500.0,0.00027397,2]
[327428646,1716072652382,-612.69,0.00027397,2]
[327428647,1716072652391,-628.71,0.00027397,2]
[327428648,1716072652403,-9177.76,0.00027397,2]
[327428649,1716072652413,-500.0,0.00027397,2]
[327428650,1716072652422,-500.0,0.00027397,2]
[327428651,1716072652432,-500.0,0.00027397,2]
[327428652,1716072652442,-2257.41,0.00027397,2]
[327428653,1716072652452,-500.0,0.00027397,2]
[327428654,1716072652462,-602.34,0.00027397,2]
[327428655,1716072652472,-944.42,0.00027397,2]
[327428656,1716072652485,-1506.69,0.00027397,2]
[327428657,1716072652494,-151.0,0.00027397,7]
[327428658,1716072652504,-359.58416694,0.00027397,2]
[327428659,1716072652514,-1061.27,0.00027397,2]
[327428660,1716072652524,-151.0,0.00027397,7]
[327428661,1716072652533,-3490.29,0.00027397,2]
[327428662,1716072652543,-500.0,0.00027397,2]
[327428663,1716072652553,-500.0,0.00027397,2]
[327428664,1716072652563,-728.73,0.00027397,2]
[327428665,1716072652573,-500.0,0.00027397,2]
[327428666,1716072652583,-600.0,0.00027397,2]
[327428667,1716072652592,-649.73,0.00027397,2]
[327428668,1716072652602,-400.0,0.00027397,4]
[327428669,1716072652611,-500.0,0.00027397,2]
[327428670,1716072652621,-500.0,0.00027397,2]
[327428671,1716072652630,-151.0,0.00027397,7]
[327428672,1716072652640,-1121.22,0.00027397,2]
[327428673,1716072652649,-500.0,0.00027397,2]
[327428674,1716072652659,-965.84,0.00027397,2]
[327428675,1716072652671,-500.0,0.00027397,2]
[327428676,1716072652680,-962.75,0.00027397,2]
[327428677,1716072652690,-500.0,0.00027397,2]
[327428678,1716072652699,-151.0,0.00027397,7]
[327428679,1716072652709,-1517.22,0.00027397,2]
[327428680,1716072652719,-607.13,0.00027397,2]
[327428681,1716072652728,-777.39,0.00027397,2]
[327428682,1716072652738,-500.0,0.00027397,2]
[327428683,1716072652748,-536.82848852,0.00027397,2]
[327428684,1716072652757,-151.0,0.00027397,7]
[327428685,1716072652767,-1646.21,0.00027397,2]
[327428686,1716072652777,-1072.65,0.00027397,2]
[327428687,1716072652787,-500.0,0.00027397,2]
[327428688,1716072652796,-522.66,0.00027397,2]
[327428689,1716072652806,-500.0,0.00027397,2]
[327428690,1716072652816,-500.0,0.00027397,2]
[327428691,1716072652826,-500.0,0.00027397,2]
[327428692,1716072652836,-500.0,0.00027397,2]
[327428693,1716072652845,-2342.49,0.00027397,2]
[327428694,1716072652855,-151.0,0.00027397,7]
[327428695,1716072652865,-500.0,0.00027397,2]
[327428696,1716072652874,-718.79,0.00027397,2]
[327428697,1716072652884,-500.0,0.00027397,2]
[327428698,1716072652893,-506.3636993,0.00027397,2]
[327428699,1716072652904,-151.0,0.00027397,7]
[327428700,1716072652914,-936.43,0.00027397,2]
[327428701,1716072652924,-521.74483147,0.00027397,2]
[327428702,1716072652936,-677.05,0.00027397,2]
[327428703,1716072652946,-500.0,0.00027397,2]
[327428704,1716072652956,-7836.42,0.00027397,2]
[327428705,1716072652966,-500.0,0.00027397,2]
[327428706,1716072652975,-1119.09,0.00027397,2]
[327428707,1716072652984,-213.77945,0.00027397,7]
[327428708,1716072652995,-500.0,0.00027397,2]
[327428709,1716072653004,-500.0,0.00027397,2]
[327428710,1716072653014,-500.0,0.00027397,2]
[327428711,1716072653023,-500.0,0.00027397,2]
[327428712,1716072653032,-500.0,0.00027397,2]
[327428713,1716072653041,-151.0,0.00027397,7]
[327428714,1716072653050,-500.0,0.00027397,2]
[327428715,1716072653060,-500.0,0.00027397,2]
[327428716,1716072653069,-500.0,0.00027397,2]
[327428717,1716072653080,-500.0,0.00027397,2]
[327428718,1716072653089,-747.33,0.00027397,2]
[327428719,1716072653098,-899.97,0.00027397,2]
[327428720,1716072653107,-151.0,0.00027397,7]
[327428721,1716072653117,-500.0,0.00027397,2]
[327428722,1716072653126,-500.0,0.00027397,2]
[327428723,1716072653135,-500.0,0.00027397,2]
[327428724,1716072653144,-958.2,0.00027397,2]
[327428725,1716072653154,-903.76,0.00027397,2]
[327428726,1716072653163,-500.0,0.00027397,2]
[327428727,1716072653172,-500.0,0.00027397,2]
[327428728,1716072653182,-814.37,0.00027397,2]
[327428729,1716072653191,-500.0,0.00027397,2]
[327428730,1716072653200,-804.91,0.00027397,2]
[327428731,1716072653209,-500.0,0.00027397,2]
[327428732,1716072653219,-5840.53,0.00027397,2]
[327428733,1716072653230,-546.54,0.00027397,2]
[327428734,1716072653240,-944.57,0.00027397,2]
[327428735,1716072653249,-567.91,0.00027397,2]
[327428736,1716072653258,-500.0,0.00027397,2]
[327428737,1716072653267,-500.0,0.00027397,2]
[327428738,1716072653277,-500.0,0.00027397,2]
[327428739,1716072653286,-500.0,0.00027397,2]
[327428740,1716072653295,-8080.33,0.00027397,2]
[327428741,1716072653305,-500.0,0.00027397,2]
[327428742,1716072653315,-514.52,0.00027397,2]
[327428743,1716072653324,-1436.74,0.00027397,2]
[327428744,1716072653334,-966.71,0.00027397,2]
[327428745,1716072653344,-500.0,0.00027397,2]
[327428746,1716072653354,-617.57,0.00027397,2]
[327428747,1716072653363,-859.01,0.00027397,2]
[327428748,1716072653373,-598.86,0.00027397,2]
[327428749,1716072653384,-4199.51,0.00027397,2]
[327428750,1716072653395,-757.33,0.00027397,2]
[327428751,1716072653410,-222.306964,0.00027397,7]
[327428752,1716072653419,-151.0,0.00027397,7]
[327428753,1716072653430,-2709.04,0.00027397,2]
[327428754,1716072653440,-845.88,0.00027397,2]
[327428755,1716072653452,-4393.59,0.00027397,2]
[327428756,1716072653461,-1202.17,0.00027397,2]
[327428757,1716072653471,-500.0,0.00027397,2]
[327428758,1716072653483,-222.306964,0.00027397,7]
[327428759,1716072653494,-830.64,0.00027397,2]
[327428760,1716072653504,-500.0,0.00027397,2]
[327428761,1716072653515,-791.26,0.00027397,2]
[327428762,1716072653526,-500.0,0.00027397,2]
[327428763,1716072653538,-1031.41,0.00027397,2]
[327428764,1716072653549,-375.91212619,0.00027397,2]
[327428765,1716072653558,-914.71,0.00027397,2]
[327428766,1716072653568,-500.0,0.00027397,2]
[327428767,1716072653578,-13454.18,0.00027397,2]
[327428768,1716072653587,-312.972067,0.00027397,7]
[327428769,1716072653596,-743.99,0.00027397,2]
[327428770,1716072653750,-825.76,0.00027397,2]
[327428771,1716072653774,-4993.36,0.00027397,2]
[327428772,1716072653784,-917.37,0.00027397,2]
[327428773,1716072653793,-500.0,0.00027397,2]
[327428774,1716072653802,-151.260722,0.00027397,7]
[327428775,1716072653811,-312.972067,0.00027397,7]
[327428776,1716072653820,-500.0,0.00027397,2]
[327428777,1716072653830,-1338.01,0.00027397,2]
[327428778,1716072653840,-294.80392879,0.00027397,2]
[327428779,1716072653849,-500.0,0.00027397,2]
[327428780,1716072653858,-500.0,0.00027397,2]
[327428781,1716072653868,-500.0,0.00027397,2]
[327428782,1716072653877,-500.0,0.00027397,2]
[327428783,1716072653886,-2348.84,0.00027397,2]
[327428784,1716072653895,-500.0,0.00027397,2]
[327428785,1716072653904,-151.0,0.00027397,7]
[327428786,1716072653913,-620.39,0.00027397,2]
[327428787,1716072653922,-151.0,0.00027397,7]
[327428788,1716072653931,-787.6,0.00027397,2]
[327428789,1716072653940,-2108.67,0.00027397,2]
[327428790,1716072653950,-151.0,0.00027397,7]
[327428791,1716072653959,-500.0,0.00027397,2]
[327428792,1716072653969,-500.0,0.00027397,2]
[327428793,1716072653979,-500.0,0.00027397,2]
[327428794,1716072653989,-591.28,0.00027397,2]
[327428795,1716072653999,-1781.93,0.00027397,2]
[327428796,1716072654008,-834.18,0.00027397,2]
[327428797,1716072654017,-291.57,0.00027397,7]
[327428798,1716072654027,-500.0,0.00027397,2]
[327428799,1716072654036,-500.0,0.00027397,2]
[327428800,1716072654046,-500.0,0.00027397,2]
[327428801,1716072654055,-1566.6,0.00027397,2]
[327428802,1716072654065,-2211.96,0.00027397,2]
[327428803,1716072654074,-449.613505,0.00027397,7]
[327428804,1716072654083,-500.0,0.00027397,2]
[327428805,1716072654093,-525.01,0.00027397,2]
[327428806,1716072654102,-500.0,0.00027397,2]
[327428807,1716072654111,-449.613505,0.00027397,7]
[327428808,1716072654120,-192.39721431,0.00027397,2]
[327428809,1716072654129,-775.61,0.00027397,2]
[327428810,1716072654139,-500.0,0.00027397,2]
[327428811,1716072654148,-524.04,0.00027397,2]
[327428812,1716072654158,-500.0,0.00027397,2]
[327428813,1716072654168,-659.23,0.00027397,2]
[327428814,1716072654177,-1439.35,0.00027397,2]
[327428815,1716072654186,-4593.95,0.00027397,2]
[327428816,1716072654195,-364.72356661,0.00027397,2]
[327428817,1716072654204,-660.78,0.00027397,2]
[327428818,1716072654214,-1429.16,0.00027397,2]
[327428819,1716072654223,-553.81,0.00027397,2]
[327428820,1716072654232,-500.0,0.00027397,2]
[327428821,1716072654242,-4440.74,0.00027397,2]
[327428822,1716072654251,-500.0,0.00027397,2]
[327428823,1716072654260,-500.0,0.00027397,2]
[327428824,1716072654269,-500.0,0.00027397,2]
[327428825,1716072654279,-859.19,0.00027397,2]
[327428826,1716072654288,-500.0,0.00027397,2]
[327428827,1716072654297,-500.0,0.00027397,2]
[327428828,1716072654306,-500.0,0.00027397,2]
[327428829,1716072654316,-500.0,0.00027397,2]
[327428830,1716072654326,-987.39,0.00027397,2]
[327428831,1716072654336,-500.0,0.00027397,2]
[327428832,1716072654346,-500.0,0.00027397,2]
[327428833,1716072654355,-2255.19,0.00027397,2]
[327428834,1716072654364,-500.0,0.00027397,2]
[327428835,1716072654373,-522.64848944,0.00027397,2]
[327428836,1716072654383,-500.0,0.00027397,2]
[327428837,1716072654392,-1264.56,0.00027397,2]
[327428838,1716072654406,-500.0,0.00027397,2]
[327428839,1716072654416,-1385.24,0.00027397,2]
[327428840,1716072654425,-441.992191,0.00027397,7]
[327428841,1716072654435,-611.43,0.00027397,2]
[327428842,1716072654445,-1221.01,0.00027397,2]
[327428843,1716072654454,-2088.5,0.00027397,2]
[327428844,1716072654463,-500.0,0.00027397,2]
[327428845,1716072654472,-1484.57,0.00027397,2]
[327428846,1716072654483,-695.302793,0.00027397,7]
[327428847,1716072654492,-500.0,0.00027397,2]
[327428848,1716072654501,-441.992191,0.00027397,7]
[327428849,1716072654510,-151.0,0.00027397,7]
[327428850,1716072654519,-561.83748079,0.00027397,2]
[327428851,1716072654529,-695.302793,0.00027397,7]
[327428852,1716072654538,-500.0,0.00027397,2]
[327428853,1716072654547,-513.76168935,0.00027397,2]
[327428854,1716072654558,-500.0,0.00027397,2]
[327428855,1716072654568,-500.0,0.00027397,2]
[327428856,1716072654577,-500.0,0.00027397,2]
[327428857,1716072654587,-151.0,0.00027397,7]
[327428858,1716072654596,-500.0,0.00027397,2]
[327428859,1716072654606,-500.0,0.00027397,2]
[327428860,1716072654615,-500.0,0.00027397,2]
[327428861,1716072654624,-500.0,0.00027397,2]
[327428862,1716072654634,-500.0,0.00027397,2]
[327428863,1716072654643,-1786.52,0.00027397,2]
[327428864,1716072654652,-500.0,0.00027397,2]
[327428865,1716072654661,-151.0,0.00027397,7]
[327428866,1716072654670,-7643.34,0.00027397,2]
[327428867,1716072654679,-865.89,0.00027397,2]
[327428868,1716072654688,-500.0,0.00027397,2]
[327428869,1716072654697,-151.0,0.00027397,7]
[327428870,1716072654706,-509.03825517,0.00027397,2]
[327428871,1716072654715,-500.0,0.00027397,2]
[327428872,1716072654724,-5681.26,0.00027397,2]
[327428873,1716072654733,-500.0,0.00027397,2]
[327428874,1716072654742,-500.0,0.00027397,2]
[327428875,1716072654751,-249.816609,0.00027397,7]
[327428876,1716072654760,-834.34,0.00027397,2]
[327428877,1716072654769,-569.88,0.00027397,2]
[327428878,1716072654778,-500.0,0.00027397,2]
[327428879,1716072654787,-500.0,0.00027397,2]
[327428880,1716072654796,-500.0,0.00027397,2]
[327428881,1716072654805,-500.0,0.00027397,2]
[327428882,1716072654815,-500.0,0.00027397,2]
[327428883,1716072654825,-184.746498,0.00027397,7]
[327428884,1716072654834,-500.0,0.00027397,2]
[327428885,1716072654843,-500.0,0.00027397,2]
[327428886,1716072654852,-500.0,0.00027397,2]
[327428887,1716072654862,-762.15,0.00027397,2]
[327428888,1716072654871,-555.28,0.00027397,2]
[327428889,1716072654880,-500.0,0.00027397,2]
[327428890,1716072654890,-184.746498,0.00027397,7]
[327428891,1716072654900,-500.0,0.00027397,2]
[327428892,1716072654909,-500.0,0.00027397,2]
[327428893,1716072654918,-500.0,0.00027397,2]
[327428894,1716072654928,-500.0,0.00027397,2]
[327428895,1716072654936,-151.0,0.00027397,7]
[327428896,1716072654946,-1179.45,0.00027397,2]
[327428897,1716072654955,-500.0,0.00027397,2]
[327428898,1716072654965,-151.0,0.00027397,7]
[327428899,1716072654974,-500.0,0.00027397,2]
[327428900,1716072654983,-500.0,0.00027397,2]
[327428901,1716072654993,-855.04,0.00027397,2]
[327428902,1716072655003,-500.0,0.00027397,2]
[327428903,1716072655013,-1063.61,0.00027397,2]
[327428904,1716072655022,-500.0,0.00027397,2]
[327428905,1716072655031,-500.0,0.00027397,2]
[327428906,1716072655041,-500.0,0.00027397,2]
[327428907,1716072655050,-654.27,0.00027397,2]
[327428908,1716072655059,-734.04,0.00027397,2]
[327428909,1716072655069,-151.0,0.00027397,7]
[327428910,1716072655078,-500.0,0.00027397,2]
[327428911,1716072655087,-500.0,0.00027397,2]
[327428912,1716072655096,-500.0,0.00027397,2]
[327428913,1716072655105,-999.31,0.00027397,2]
[327428914,1716072655115,-616.27,0.00027397,2]
[327428915,1716072655123,-165.94999553,0.00027397,2]
[327428916,1716072655133,-178.56021055,0.00027397,2]
[327428917,1716072655142,-668.19,0.00027397,2]
[327428918,1716072655151,-500.0,0.00027397,2]
[327428919,1716072655160,-2612.48,0.00027397,2]
[327428920,1716072655169,-948.02,0.00027397,2]
[327428921,1716072655178,-500.0,0.00027397,2]
[327428922,1716072655188,-500.0,0.00027397,2]
[327428923,1716072655197,-500.0,0.00027397,2]
[327428924,1716072655206,-969.95,0.00027397,2]
[327428925,1716072655215,-874.06,0.00027397,2]
[327428926,1716072655224,-151.0,0.00027397,7]
[327428927,1716072655234,-515.87,0.00027397,2]
[327428928,1716072655243,-897.1,0.00027397,2]
[327428929,1716072655253,-1449.83,0.00027397,2]
[327428930,1716072655262,-500.0,0.00027397,2]
[327428931,1716072655271,-500.0,0.00027397,2]
[327428932,1716072655280,-500.0,0.00027397,2]
[327428933,1716072655289,-3443.361454,0.00027397,7]
[327428934,1716072655299,-918.73,0.00027397,2]
[327428935,1716072655308,-3000.0,0.00027397,7]
[327428936,1716072655318,-4000.0,0.00027397,2]
[327428937,1716072655328,-151.0,0.00027397,7]
[327428938,1716072655336,-436.02,0.000274,2]
[327428939,1716072655346,-436.02,0.000274,2]
[327428940,1716072655355,-436.02,0.000274,2]
[327428941,1716072655364,-436.02,0.000274,2]
[327428942,1716072655373,-436.02,0.000274,2]
[327428943,1716072655383,-436.02,0.000274,2]
[327428944,1716072655400,-436.02,0.000274,2]
[327428945,1716072655409,-436.02,0.000274,2]
[327428946,1716072655419,-436.02,0.000274,2]
[327428947,1716072655432,-436.02,0.000274,2]
[327428948,1716072655441,-157.051907,0.00027448,10]
[327428949,1716072655451,-2591.10560752,0.000275,30]
[327428950,1716072655460,-156.54,0.00027641,2]
[327428951,1716072655470,-479.64218886,0.0002767,7]
[327428952,1716072655479,-150.0,0.0002767,2]
[327428953,1716072655490,-1186.2092065,0.00027671,2]
[327428954,1716072655500,-500.0,0.00027671,2]
[327428955,1716072655509,-500.0,0.00027671,2]
[327428956,1716072655519,-338.34003186,0.00027671,2]
[327428957,1716072655528,-495.95836169,0.00027671,2]
[327428958,1716072655538,-419.94027421,0.00027671,2]
[327428959,1716072655548,-500.0,0.00027671,2]
[327428960,1716072655557,-227.02962219,0.00027671,2]
[327428961,1716072655566,-500.0,0.00027671,2]
[327428962,1716072655576,-500.0,0.00027671,2]
[327428963,1716072655585,-414.9912693,0.00027671,2]
[327428964,1716072655594,-854.48,0.00027671,2]
[327428965,1716072655603,-500.0,0.00027671,2]
[327428966,1716072655612,-500.0,0.00027671,2]
[327428967,1716072655621,-500.0,0.00027671,2]
[327428968,1716072655630,-524.62887693,0.00027671,2]
[327428969,1716072655639,-500.0,0.00027671,2]
[327428970,1716072655648,-500.0,0.00027671,2]
[327428971,1716072655658,-523.36872284,0.00027671,2]
[327428972,1716072655668,-722.84,0.00027671,2]
[327428973,1716072655677,-500.0,0.00027671,2]
[327428974,1716072655686,-545.3638025,0.00027671,2]
[327428975,1716072655696,-500.0,0.00027671,2]
[327428976,1716072655705,-528.88517295,0.00027671,2]
[327428977,1716072655714,-500.0,0.00027671,2]
[327428978,1716072655724,-500.0,0.00027671,2]
[327428979,1716072655733,-749.24,0.00027671,2]
[327428980,1716072655742,-550.07,0.00027671,2]
[327428981,1716072655751,-520.7727122,0.00027671,2]
[327428982,1716072655760,-763.94,0.00027671,2]
[327428983,1716072655769,-500.0,0.00027671,2]
[327428984,1716072655778,-500.0,0.00027671,2]
[327428985,1716072655788,-500.0,0.00027671,2]
[327428986,1716072655797,-500.0,0.00027671,2]
[327428987,1716072655806,-931.54,0.00027671,2]
[327428988,1716072655816,-170.21838406,0.00027671,2]
[327428989,1716072655826,-1254.54,0.00027671,2]
[327428990,1716072655836,-500.0,0.00027671,2]
[327428991,1716072655845,-193.989042,0.00027671,7]
[327428992,1716072655854,-500.0,0.00027671,2]
[327428993,1716072655864,-545.32,0.00027671,2]
[327428994,1716072655873,-500.0,0.00027671,2]
[327428995,1716072655883,-500.0,0.00027671,2]
[327428996,1716072655892,-500.0,0.00027671,2]
[327428997,1716072655902,-500.0,0.00027671,2]
[327428998,1716072655911,-500.0,0.00027671,2]
[327428999,1716072655920,-500.0,0.00027671,2]
[327429000,1716072655929,-500.0,0.00027671,2]
[327429001,1716072655939,-500.0,0.00027671,2]
[327429002,1716072655948,-500.0,0.00027671,2]
[327429003,1716072655957,-534.23771048,0.00027671,2]
[327429004,1716072656098,-500.0,0.00027671,2]
[327429005,1716072656108,-964.74,0.00027671,2]
[327429006,1716072656118,-500.0,0.00027671,2]
[327429007,1716072656127,-526.17361407,0.00027671,2]
[327429008,1716072656138,-500.0,0.00027671,2]
[327429009,1716072656148,-505.36336741,0.00027671,2]
[327429010,1716072656159,-1304.69,0.00027671,2]
[327429011,1716072656168,-500.0,0.00027671,2]
[327429012,1716072656177,-1394.33,0.00027671,2]
[327429013,1716072656187,-557.23881731,0.00027671,2]
[327429014,1716072656196,-500.0,0.00027671,2]
[327429015,1716072656205,-500.0,0.00027671,2]
[327429016,1716072656214,-500.0,0.00027671,2]
[327429017,1716072656223,-500.0,0.00027671,2]
[327429018,1716072656232,-1176.76,0.00027671,2]
[327429019,1716072656241,-500.0,0.00027671,2]
[327429020,1716072656250,-500.0,0.00027671,2]
[327429021,1716072656259,-506.32890215,0.00027671,2]
[327429022,1716072656269,-500.0,0.00027671,2]
[327429023,1716072656278,-500.0,0.00027671,2]
[327429024,1716072656288,-500.0,0.00027671,2]
[327429025,1716072656297,-500.0,0.00027671,2]
[327429026,1716072656308,-500.0,0.00027671,2]
[327429027,1716072656318,-500.0,0.00027671,2]
[327429028,1716072656327,-500.0,0.00027671,2]
[327429029,1716072656337,-500.0,0.00027671,2]
[327429030,1716072656347,-500.0,0.00027671,2]
[327429031,1716072656356,-572.05,0.00027671,2]
[327429032,1716072656367,-500.0,0.00027671,2]
[327429033,1716072656376,-522.47916385,0.00027671,2]
[327429034,1716072656386,-1239.33,0.00027671,2]
[327429035,1716072656395,-661.91,0.00027671,2]
[327429036,1716072656409,-212.95950279,0.00027671,2]
[327429037,1716072656418,-500.0,0.00027671,2]
[327429038,1716072656427,-500.0,0.00027671,2]
[327429039,1716072656436,-500.0,0.00027671,2]
[327429040,1716072656447,-500.0,0.00027671,2]
[327429041,1716072656456,-151.0,0.00027671,7]
[327429042,1716072656465,-500.0,0.00027671,2]
[327429043,1716072656475,-500.0,0.00027671,2]
[327429044,1716072656485,-500.0,0.00027671,2]
[327429045,1716072656494,-500.0,0.00027671,2]
[327429046,1716072656503,-680.23,0.00027671,2]
[327429047,1716072656512,-500.0,0.00027671,2]
[327429048,1716072656522,-500.0,0.00027671,2]
[327429049,1716072656531,-500.0,0.00027671,2]
[327429050,1716072656540,-500.0,0.00027671,2]
[327429051,1716072656550,-1000.47,0.00027671,2]
[327429052,1716072656559,-500.0,0.00027671,2]
[327429053,1716072656568,-605.84,0.00027671,2]
[327429054,1716072656578,-500.0,0.00027671,2]
[327429055,1716072656587,-500.0,0.00027671,2]
[327429056,1716072656596,-790.21,0.00027671,2]
[327429057,1716072656605,-765.58,0.00027671,2]
[327429058,1716072656614,-1223.78,0.00027671,2]
[327429059,1716072656625,-500.0,0.00027671,2]
[327429060,1716072656634,-1056.08,0.00027671,2]
[327429061,1716072656643,-534.55,0.00027671,2]
[327429062,1716072656654,-678.81,0.00027671,2]
[327429063,1716072656663,-500.0,0.00027671,2]
[327429064,1716072656672,-812.38,0.00027671,2]
[327429065,1716072656681,-151.0,0.00027671,7]
[327429066,1716072656691,-523.75119471,0.00027671,2]
[327429067,1716072656701,-582.36,0.00027671,2]
[327429068,1716072656711,-1653.59,0.00027671,2]
[327429069,1716072656721,-500.0,0.00027671,2]
[327429070,1716072656730,-151.0,0.00027671,7]
[327429071,1716072656739,-1175.58,0.00027671,2]
[327429072,1716072656749,-500.0,0.00027671,2]
[327429073,1716072656758,-1017.72,0.00027671,2]
[327429074,1716072656767,-1143.15,0.00027671,2]
[327429075,1716072656777,-500.0,0.00027671,2]
[327429076,1716072656787,-831.82,0.00027671,2]
[327429077,1716072656795,-151.0,0.00027671,7]
[327429078,1716072656804,-802.37,0.00027671,2]
[327429079,1716072656814,-301.069162,0.00027671,7]
[327429080,1716072656823,-800.26,0.00027671,2]
[327429081,1716072656833,-151.0,0.00027671,7]
[327429082,1716072656842,-1028.52,0.00027671,2]
[327429083,1716072656851,-518.91466482,0.00027671,2]
[327429084,1716072656860,-500.0,0.00027671,2]
[327429085,1716072656869,-726.12,0.00027671,2]
[327429086,1716072656879,-1012.59,0.00027671,2]
[327429087,1716072656888,-500.0,0.00027671,2]
[327429088,1716072656897,-708.72,0.00027671,2]
[327429089,1716072656906,-984.97,0.00027671,2]
[327429090,1716072656915,-505.01066493,0.00027671,2]
[327429091,1716072656923,-825.63,0.00027671,2]
[327429092,1716072656933,-500.0,0.00027671,2]
[327429093,1716072656943,-500.0,0.00027671,2]
[327429094,1716072656952,-500.0,0.00027671,2]
[327429095,1716072656961,-500.0,0.00027671,2]
[327429096,1716072656970,-500.0,0.00027671,2]
[327429097,1716072656979,-1274.28,0.00027671,2]
[327429098,1716072656988,-500.0,0.00027671,2]
[327429099,1716072656997,-500.0,0.00027671,2]
[327429100,1716072657006,-500.0,0.00027671,2]
[327429101,1716072657016,-500.0,0.00027671,2]
[327429102,1716072657025,-551.19,0.00027671,2]
[327429103,1716072657034,-500.0,0.00027671,2]
[327429104,1716072657043,-500.0,0.00027671,2]
[327429105,1716072657053,-706.32,0.00027671,2]
[327429106,1716072657063,-181.2746569,0.00027671,2]
[327429107,1716072657072,-259.90980394,0.00027671,2]
[327429108,1716072657081,-500.0,0.00027671,2]
[327429109,1716072657091,-500.0,0.00027671,2]
[327429110,1716072657100,-806.78,0.00027671,2]
[327429111,1716072657109,-500.0,0.00027671,2]
[327429112,1716072657118,-453.43057717,0.00027671,2]
[327429113,1716072657127,-1763.56,0.00027671,2]
[327429114,1716072657136,-151.0,0.00027671,7]
[327429115,1716072657145,-756.43,0.00027671,2]